fUSD/lending_fUSD_20240527
["ID","MTS","AMOUNT","RATE_DAILY","PERIOD"]
[328025438,1716774680574,-797.4,0.00029863,4]
[328025439,1716774680583,-500.0,0.00029863,4]
[328025440,1716774680593,-500.0,0.00029863,4]
[328025441,1716774680602,-500.0,0.00029863,4]
[328025442,1716774680612,-811.5,0.00029863,4]
[328025443,1716774680622,-500.0,0.00029863,4]
[328025444,1716774680633,-500.0,0.00029863,4]
[328025445,1716774680644,-551.60364058,0.00029863,4]
[328025446,1716774680654,-500.0,0.00029863,4]
[328025447,1716774680664,-752.63,0.00029863,4]
[328025448,1716774680674,-500.0,0.00029863,4]
[328025449,1716774680684,-500.0,0.00029863,4]
[328025450,1716774680693,-500.0,0.00029863,4]
[328025451,1716774680703,-508.3,0.00029863,4]
[328025452,1716774680712,-500.0,0.00029863,4]
[328025453,1716774680722,-500.0,0.00029863,4]
[328025454,1716774680731,-500.0,0.00029863,4]
[328025455,1716774680741,-612.14,0.00029863,4]
[328025456,1716774680751,-500.0,0.00029863,4]
[328025457,1716774680760,-500.0,0.00029863,4]
[328025458,1716774680770,-184.22963624,0.00029863,4]
[328025459,1716774680780,-1562.49,0.00029863,4]
[328025460,1716774680790,-500.0,0.00029863,4]
[328025461,1716774680800,-500.0,0.00029863,4]
[328025462,1716774680809,-500.0,0.00029863,4]
[328025463,1716774680819,-500.0,0.00029863,4]
[328025464,1716774680830,-500.0,0.00029863,4]
[328025465,1716774680839,-500.0,0.00029863,4]
[328025466,1716774680849,-1201.55,0.00029863,4]
[328025467,1716774680858,-500.0,0.00029863,4]
[328025468,1716774680868,-500.0,0.00029863,4]
[328025469,1716774680878,-545.25,0.00029863,4]
[328025470,1716774680890,-500.0,0.00029863,4]
[328025471,1716774680899,-500.0,0.00029863,4]
[328025472,1716774680908,-753.55,0.00029863,4]
[328025473,1716774680922,-500.0,0.00029863,4]
[328025474,1716774680931,-500.0,0.00029863,4]
[328025475,1716774680941,-500.0,0.00029863,4]
[328025476,1716774680951,-1011.37,0.00029863,4]
[328025477,1716774680960,-666.41,0.00029863,4]
[328025478,1716774680970,-500.0,0.00029863,4]
[328025479,1716774680980,-1614.98,0.00029863,4]
[328025480,1716774680989,-500.0,0.00029863,4]
[328025481,1716774680999,-500.0,0.00029863,4]
[328025482,1716774681008,-801.81,0.00029863,4]
[328025483,1716774681018,-664.62,0.00029863,4]
[328025484,1716774681027,-500.0,0.00029863,4]
[328025485,1716774681037,-500.0,0.00029863,4]
[328025486,1716774681047,-584.07,0.00029863,4]
[328025487,1716774681057,-500.0,0.00029863,4]
[328025488,1716774681066,-1253.98,0.00029863,4]
[328025489,1716774681075,-500.0,0.00029863,4]
[328025490,1716774681085,-1261.26,0.00029863,4]
[328025491,1716774681094,-576.77,0.00029863,4]
[328025492,1716774681104,-500.0,0.00029863,4]
[328025493,1716774681113,-500.0,0.00029863,4]
[328025494,1716774681123,-500.0,0.00029863,4]
[328025495,1716774681132,-1690.76,0.00029863,4]
[328025496,1716774681143,-603.3,0.00029863,4]
[328025497,1716774681152,-500.0,0.00029863,4]
[328025498,1716774681162,-500.0,0.00029863,4]
[328025499,1716774681171,-500.0,0.00029863,4]
[328025500,1716774681180,-500.0,0.00029863,4]
[328025501,1716774681189,-12954.13,0.00029863,4]
[328025502,1716774681199,-500.0,0.00029863,4]
[328025503,1716774681208,-500.0,0.00029863,4]
[328025504,1716774681219,-500.0,0.00029863,4]
[328025505,1716774681229,-500.0,0.00029863,4]
[328025506,1716774681240,-500.0,0.00029863,4]
[328025507,1716774681249,-1011.74,0.000299,2]
[328025508,1716774681259,-226.7090065,0.0002991,3]
[328025509,1716774681268,-630.56821421,0.0003,10]
[328025510,1716774681277,-5694.13655702,0.0003,2]
[328025511,1716774681287,-155.0,0.0003,4]
[328025512,1716774681296,-377.11834236,0.0003,30]
[328025513,1716774681307,-18522.0,0.0003,2]
[328025514,1716774681316,-522.54033427,0.00030078,2]
[328025515,1716774681326,-500.0,0.00030136,4]
[328025516,1716774681335,-500.0,0.00030136,4]
[328025517,1716774681344,-500.0,0.00030136,4]
[328025518,1716774681354,-500.0,0.00030136,4]
[328025519,1716774681363,-548.99,0.00030136,4]
[328025520,1716774681374,-623.54,0.00030136,4]
[328025521,1716774681384,-500.0,0.00030136,4]
[328025522,1716774681395,-500.0,0.00030136,4]
[328025523,1716774681405,-474.75522207,0.00030136,4]
[328025524,1716774681415,-500.0,0.00030136,4]
[328025525,1716774681425,-500.0,0.00030136,4]
[328025526,1716774681435,-500.0,0.00030136,4]
[328025527,1716774681445,-500.0,0.00030136,4]
[328025528,1716774681454,-500.0,0.00030136,4]
[328025529,1716774681464,-500.0,0.00030136,4]
[328025530,1716774681474,-500.0,0.00030136,4]
[328025531,1716774681484,-500.0,0.00030136,4]
[328025532,1716774681493,-500.0,0.00030136,4]
[328025533,1716774681503,-500.0,0.00030136,4]
[328025534,1716774681512,-500.0,0.00030136,4]
[328025535,1716774681522,-261.01813782,0.00030136,4]
[328025536,1716774681531,-500.0,0.00030136,4]
[328025537,1716774681541,-500.0,0.00030136,4]
[328025538,1716774681550,-235.5750914,0.00030136,4]
[328025539,1716774681560,-716.7,0.00030136,4]
[328025540,1716774681570,-500.0,0.00030136,4]
[328025541,1716774681580,-500.0,0.00030136,4]
[328025542,1716774681590,-579.26312198,0.00030136,4]
[328025543,1716774681599,-500.0,0.00030136,4]
[328025544,1716774681609,-500.0,0.00030136,4]
[328025545,1716774681619,-500.0,0.00030136,4]
[328025546,1716774681628,-500.0,0.00030136,4]
[328025547,1716774681641,-171.41539711,0.00030136,4]
[328025548,1716774681651,-520.81,0.00030136,4]
[328025549,1716774681661,-500.0,0.00030136,4]
[328025550,1716774681672,-500.0,0.00030136,4]
[328025551,1716774681681,-500.0,0.00030136,4]
[328025552,1716774681691,-500.0,0.00030136,4]
[328025553,1716774681700,-500.0,0.00030136,4]
[328025554,1716774681710,-500.0,0.00030136,4]
[328025555,1716774681719,-500.0,0.00030136,4]
[328025556,1716774681728,-500.0,0.00030136,4]
[328025557,1716774681738,-500.0,0.00030136,4]
[328025558,1716774681747,-500.0,0.00030136,4]
[328025559,1716774681756,-500.0,0.00030136,4]
[328025560,1716774681766,-500.0,0.00030136,4]
[328025561,1716774681776,-500.0,0.00030136,4]
[328025562,1716774681785,-500.0,0.00030136,4]
[328025563,1716774681794,-500.0,0.00030136,4]
[328025564,1716774681803,-502.71,0.00030136,4]
[328025565,1716774681813,-809.78,0.00030136,4]
[328025566,1716774681823,-500.0,0.00030136,4]
[328025567,1716774681832,-329.84606719,0.00030136,4]
[328025568,1716774681842,-920.26,0.00030136,4]
[328025569,1716774681852,-500.0,0.00030136,4]
[328025570,1716774681861,-522.9,0.00030136,4]
[328025571,1716774681871,-383.26512031,0.00030136,4]
[328025572,1716774681880,-550.8965492,0.00030136,4]
[328025573,1716774681892,-559.7,0.00030136,4]
[328025574,1716774681902,-3246.39,0.00030136,4]
[328025575,1716774681911,-850.87,0.00030136,4]
[328025576,1716774681921,-500.0,0.00030136,4]
[328025577,1716774681931,-500.0,0.00030136,4]
[328025578,1716774681940,-1876.14,0.00030136,4]
[328025579,1716774681950,-500.0,0.00030136,4]
[328025580,1716774681959,-500.0,0.00030136,4]
[328025581,1716774681969,-1150.71,0.00030136,4]
[328025582,1716774681978,-260.50579566,0.00030136,4]
[328025583,1716774681988,-3298.05,0.00030136,4]
[328025584,1716774681997,-500.0,0.00030136,4]
[328025585,1716774682007,-665.62,0.00030136,4]
[328025586,1716774682016,-500.0,0.00030136,4]
[328025587,1716774682026,-420.19328767,0.00030136,4]
[328025588,1716774682036,-1737.1,0.00030136,4]
[328025589,1716774682046,-543.97529843,0.00030136,4]
[328025590,1716774682055,-500.0,0.00030136,4]
[328025591,1716774682065,-589.83,0.00030136,4]
[328025592,1716774682074,-1057.8,0.00030136,4]
[328025593,1716774682083,-500.0,0.00030136,4]
[328025594,1716774682093,-500.0,0.00030136,4]
[328025595,1716774682103,-503.9453933,0.00030136,4]
[328025596,1716774682113,-538.99,0.00030136,4]
[328025597,1716774682123,-674.64,0.00030136,4]
[328025598,1716774682132,-1379.1,0.00030136,4]
[328025599,1716774682145,-500.0,0.00030136,4]
[328025600,1716774682155,-500.0,0.00030136,4]
[328025601,1716774682164,-903.17,0.00030136,4]
[328025602,1716774682174,-500.0,0.00030136,4]
[328025603,1716774682183,-500.0,0.00030136,4]
[328025604,1716774682192,-500.0,0.00030136,4]
[328025605,1716774682202,-342.68264345,0.00030136,4]
[328025606,1716774682212,-500.0,0.00030136,4]
[328025607,1716774682223,-500.0,0.00030136,4]
[328025608,1716774682236,-417.18030225,0.00030136,4]
[328025609,1716774682246,-500.0,0.00030136,4]
[328025610,1716774682255,-500.0,0.00030136,4]
[328025611,1716774682267,-500.0,0.00030136,4]
[328025612,1716774682277,-500.0,0.00030136,4]
[328025613,1716774682286,-348.02130388,0.00030136,4]
[328025614,1716774682295,-500.0,0.00030136,4]
[328025615,1716774682307,-1792.24,0.00030136,4]
[328025616,1716774682316,-298.60285075,0.00030136,4]
[328025617,1716774682326,-500.0,0.00030136,4]
[328025618,1716774682335,-500.0,0.00030136,4]
[328025619,1716774682345,-500.0,0.00030136,4]
[328025620,1716774682355,-500.0,0.00030136,4]
[328025621,1716774682365,-500.0,0.00030136,4]
[328025622,1716774682375,-555.55,0.00030136,4]
[328025623,1716774682386,-500.0,0.00030136,4]
[328025624,1716774682397,-500.0,0.00030136,4]
[328025625,1716774682406,-500.0,0.00030136,4]
[328025626,1716774682415,-500.0,0.00030136,4]
[328025627,1716774682424,-554.9,0.00030136,4]
[328025628,1716774682436,-500.0,0.00030136,4]
[328025629,1716774682445,-593.69,0.00030136,4]
[328025630,1716774682455,-1375.79,0.00030136,4]
[328025631,1716774682465,-797.4,0.00030136,4]
[328025632,1716774682474,-500.0,0.00030136,4]
[328025633,1716774682483,-500.0,0.00030136,4]
[328025634,1716774682736,-500.0,0.00030136,4]
[328025635,1716774682747,-811.5,0.00030136,4]
[328025636,1716774682757,-500.0,0.00030136,4]
[328025637,1716774682767,-500.0,0.00030136,4]
[328025638,1716774682776,-500.0,0.00030136,4]
[328025639,1716774682786,-752.63,0.00030136,4]
[328025640,1716774682795,-500.0,0.00030136,4]
[328025641,1716774682804,-500.0,0.00030136,4]
[328025642,1716774682814,-500.0,0.00030136,4]
[328025643,1716774682823,-508.3,0.00030136,4]
[328025644,1716774682833,-500.0,0.00030136,4]
[328025645,1716774682843,-500.0,0.00030136,4]
[328025646,1716774682852,-500.0,0.00030136,4]
[328025647,1716774682861,-612.14,0.00030136,4]
[328025648,1716774682871,-500.0,0.00030136,4]
[328025649,1716774682880,-410.73341133,0.00030136,4]
[328025650,1716774682892,-1562.49,0.00030136,4]
[328025651,1716774682901,-500.0,0.00030136,4]
[328025652,1716774682910,-500.0,0.00030136,4]
[328025653,1716774682919,-500.0,0.00030136,4]
[328025654,1716774682928,-472.51907348,0.00030136,4]
[328025655,1716774682937,-500.0,0.00030136,4]
[328025656,1716774682947,-192.79898625,0.00030136,4]
[328025657,1716774682956,-1201.55,0.00030136,4]
[328025658,1716774682965,-500.0,0.00030136,4]
[328025659,1716774682975,-500.0,0.00030136,4]
[328025660,1716774682985,-545.25,0.00030136,4]
[328025661,1716774682994,-500.0,0.00030136,4]
[328025662,1716774683004,-500.0,0.00030136,4]
[328025663,1716774683013,-753.55,0.00030136,4]
[328025664,1716774683023,-500.0,0.00030136,4]
[328025665,1716774683032,-500.0,0.00030136,4]
[328025666,1716774683041,-500.0,0.00030136,4]
[328025667,1716774683051,-1011.37,0.00030136,4]
[328025668,1716774683060,-666.41,0.00030136,4]
[328025669,1716774683070,-500.0,0.00030136,4]
[328025670,1716774683080,-1614.98,0.00030136,4]
[328025671,1716774683089,-500.0,0.00030136,4]
[328025672,1716774683100,-245.54544889,0.00030136,4]
[328025673,1716774683111,-801.81,0.00030136,4]
[328025674,1716774683120,-664.62,0.00030136,4]
[328025675,1716774683130,-577.05170274,0.00030136,4]
[328025676,1716774683141,-500.0,0.00030136,4]
[328025677,1716774683150,-584.07,0.00030136,4]
[328025678,1716774683160,-500.0,0.00030136,4]
[328025679,1716774683170,-1253.98,0.00030136,4]
[328025680,1716774683179,-500.0,0.00030136,4]
[328025681,1716774683188,-1261.26,0.00030136,4]
[328025682,1716774683198,-576.77,0.00030136,4]
[328025683,1716774683207,-500.0,0.00030136,4]
[328025684,1716774683218,-500.0,0.00030136,4]
[328025685,1716774683228,-509.02817951,0.00030136,4]
[328025686,1716774683240,-1690.76,0.00030136,4]
[328025687,1716774683250,-603.3,0.00030136,4]
[328025688,1716774683260,-345.08048426,0.00030136,4]
[328025689,1716774683269,-500.0,0.00030136,4]
[328025690,1716774683278,-500.0,0.00030136,4]
[328025691,1716774683288,-500.0,0.00030136,4]
[328025692,1716774683297,-12954.13,0.00030136,4]
[328025693,1716774683306,-195.01997993,0.00030136,4]
[328025694,1716774683316,-500.0,0.00030136,4]
[328025695,1716774683325,-500.0,0.00030136,4]
[328025696,1716774683334,-602.91389887,0.00030317,2]
[328025697,1716774683343,-153.5,0.00030374,2]
[328025698,1716774683353,-268.79076826,0.00030378,4]
[328025699,1716774683362,-206.82231274,0.00030378,4]
[328025700,1716774683372,-182.14084669,0.00030378,4]
[328025701,1716774683381,-332.9630001,0.000304,2]
[328025702,1716774683392,-514.43028827,0.000304,2]
[328025703,1716774683405,-255.09776152,0.0003041,4]
[328025704,1716774683415,-500.0,0.0003041,4]
[328025705,1716774683424,-500.0,0.0003041,4]
[328025706,1716774683434,-500.0,0.0003041,4]
[328025707,1716774683443,-548.99,0.0003041,4]
[328025708,1716774683454,-623.54,0.0003041,4]
[328025709,1716774683463,-500.0,0.0003041,4]
[328025710,1716774683473,-303.56888316,0.0003041,4]
[328025711,1716774683483,-194.83245485,0.0003041,4]
[328025712,1716774683492,-500.0,0.0003041,4]
[328025713,1716774683502,-500.0,0.0003041,4]
[328025714,1716774683512,-580.20872391,0.0003041,4]
[328025715,1716774683522,-500.0,0.0003041,4]
[328025716,1716774683532,-500.0,0.0003041,4]
[328025717,1716774683541,-500.0,0.0003041,4]
[328025718,1716774683551,-439.27858244,0.0003041,4]
[328025719,1716774683561,-500.0,0.0003041,4]
[328025720,1716774683570,-500.0,0.0003041,4]
[328025721,1716774683579,-500.0,0.0003041,4]
[328025722,1716774683589,-632.57616881,0.0003041,4]
[328025723,1716774683598,-500.0,0.0003041,4]
[328025724,1716774683608,-716.7,0.0003041,4]
[328025725,1716774683618,-500.0,0.0003041,4]
[328025726,1716774683627,-500.0,0.0003041,4]
[328025727,1716774683638,-500.0,0.0003041,4]
[328025728,1716774683647,-500.0,0.0003041,4]
[328025729,1716774683656,-500.0,0.0003041,4]
[328025730,1716774683666,-500.0,0.0003041,4]
[328025731,1716774683676,-520.81,0.0003041,4]
[328025732,1716774683686,-500.0,0.0003041,4]
[328025733,1716774683696,-500.0,0.0003041,4]
[328025734,1716774683705,-500.0,0.0003041,4]
[328025735,1716774683715,-500.0,0.0003041,4]
[328025736,1716774683725,-500.0,0.0003041,4]
[328025737,1716774683734,-500.0,0.0003041,4]
[328025738,1716774683743,-517.40571167,0.0003041,4]
[328025739,1716774683753,-500.0,0.0003041,4]
[328025740,1716774683762,-586.79249496,0.0003041,4]
[328025741,1716774683772,-500.0,0.0003041,4]
[328025742,1716774683781,-500.0,0.0003041,4]
[328025743,1716774683790,-500.0,0.0003041,4]
[328025744,1716774683800,-500.0,0.0003041,4]
[328025745,1716774683809,-500.0,0.0003041,4]
[328025746,1716774683819,-500.0,0.0003041,4]
[328025747,1716774683830,-502.71,0.0003041,4]
[328025748,1716774683840,-809.78,0.0003041,4]
[328025749,1716774683850,-500.0,0.0003041,4]
[328025750,1716774683861,-920.26,0.0003041,4]
[328025751,1716774683870,-500.0,0.0003041,4]
[328025752,1716774683879,-522.9,0.0003041,4]
[328025753,1716774683891,-559.7,0.0003041,4]
[328025754,1716774683901,-3246.39,0.0003041,4]
[328025755,1716774683910,-850.87,0.0003041,4]
[328025756,1716774683920,-500.0,0.0003041,4]
[328025757,1716774683929,-500.0,0.0003041,4]
[328025758,1716774683938,-1876.14,0.0003041,4]
[328025759,1716774683947,-500.0,0.0003041,4]
[328025760,1716774683957,-500.0,0.0003041,4]
[328025761,1716774683966,-1150.71,0.0003041,4]
[328025762,1716774683976,-3298.05,0.0003041,4]
[328025763,1716774683986,-500.0,0.0003041,4]
[328025764,1716774683995,-665.62,0.0003041,4]
[328025765,1716774684004,-500.0,0.0003041,4]
[328025766,1716774684014,-1737.1,0.0003041,4]
[328025767,1716774684024,-500.0,0.0003041,4]
[328025768,1716774684033,-589.83,0.0003041,4]
[328025769,1716774684043,-1057.8,0.0003041,4]
[328025770,1716774684052,-500.0,0.0003041,4]
[328025771,1716774684062,-500.0,0.0003041,4]
[328025772,1716774684072,-538.99,0.0003041,4]
[328025773,1716774684081,-674.64,0.0003041,4]
[328025774,1716774684091,-1379.1,0.0003041,4]
[328025775,1716774684101,-500.0,0.0003041,4]
[328025776,1716774684110,-500.0,0.0003041,4]
[328025777,1716774684120,-903.17,0.0003041,4]
[328025778,1716774684129,-500.0,0.0003041,4]
[328025779,1716774684139,-500.0,0.0003041,4]
[328025780,1716774684148,-500.0,0.0003041,4]
[328025781,1716774684157,-500.0,0.0003041,4]
[328025782,1716774684166,-500.0,0.0003041,4]
[328025783,1716774684176,-500.0,0.0003041,4]
[328025784,1716774684186,-500.0,0.0003041,4]
[328025785,1716774684196,-500.0,0.0003041,4]
[328025786,1716774684206,-500.0,0.0003041,4]
[328025787,1716774684216,-500.0,0.0003041,4]
[328025788,1716774684225,-1792.24,0.0003041,4]
[328025789,1716774684238,-356.00092091,0.0003041,4]
[328025790,1716774684248,-500.0,0.0003041,4]
[328025791,1716774684258,-357.06,0.0003041,4]
[328025792,1716774684269,-500.0,0.0003041,4]
[328025793,1716774684279,-500.0,0.0003041,4]
[328025794,1716774684288,-555.55,0.0003041,4]
[328025795,1716774684298,-500.0,0.0003041,4]
[328025796,1716774684308,-500.0,0.0003041,4]
[328025797,1716774684319,-500.0,0.0003041,4]
[328025798,1716774684329,-500.0,0.0003041,4]
[328025799,1716774684339,-554.9,0.0003041,4]
[328025800,1716774684348,-500.0,0.0003041,4]
[328025801,1716774684358,-593.69,0.0003041,4]
[328025802,1716774684368,-1375.79,0.0003041,4]
[328025803,1716774684377,-797.4,0.0003041,4]
[328025804,1716774684389,-500.0,0.0003041,4]
[328025805,1716774684399,-500.0,0.0003041,4]
[328025806,1716774684409,-500.0,0.0003041,4]
[328025807,1716774684419,-811.5,0.0003041,4]
[328025808,1716774684429,-500.0,0.0003041,4]
[328025809,1716774684438,-500.0,0.0003041,4]
[328025810,1716774684448,-500.0,0.0003041,4]
[328025811,1716774684458,-752.63,0.0003041,4]
[328025812,1716774684468,-500.0,0.0003041,4]
[328025813,1716774684478,-500.0,0.0003041,4]
[328025814,1716774684488,-431.70459023,0.0003041,4]
[328025815,1716774684498,-508.3,0.0003041,4]
[328025816,1716774684508,-500.0,0.0003041,4]
[328025817,1716774684518,-500.0,0.0003041,4]
[328025818,1716774684527,-500.0,0.0003041,4]
[328025819,1716774684536,-612.14,0.0003041,4]
[328025820,1716774684546,-500.0,0.0003041,4]
[328025821,1716774684556,-1562.49,0.0003041,4]
[328025822,1716774684565,-500.0,0.0003041,4]
[328025823,1716774684575,-500.0,0.0003041,4]
[328025824,1716774684585,-500.0,0.0003041,4]
[328025825,1716774684594,-500.0,0.0003041,4]
[328025826,1716774684604,-1201.55,0.0003041,4]
[328025827,1716774684614,-500.0,0.0003041,4]
[328025828,1716774684623,-490.8999018,0.0003041,4]
[328025829,1716774684633,-545.25,0.0003041,4]
[328025830,1716774684646,-500.0,0.0003041,4]
[328025831,1716774684656,-500.0,0.0003041,4]
[328025832,1716774684666,-753.55,0.0003041,4]
[328025833,1716774684676,-421.89810116,0.0003041,4]
[328025834,1716774684686,-279.26829251,0.0003041,4]
[328025835,1716774684695,-500.0,0.0003041,4]
[328025836,1716774684705,-1011.37,0.0003041,4]
[328025837,1716774684714,-666.41,0.0003041,4]
[328025838,1716774684724,-500.0,0.0003041,4]
[328025839,1716774684733,-1614.98,0.0003041,4]
[328025840,1716774684743,-500.0,0.0003041,4]
[328025841,1716774684752,-801.81,0.0003041,4]
[328025842,1716774684762,-664.62,0.0003041,4]
[328025843,1716774684772,-500.0,0.0003041,4]
[328025844,1716774684781,-584.07,0.0003041,4]
[328025845,1716774684791,-500.0,0.0003041,4]
[328025846,1716774684800,-1253.98,0.0003041,4]
[328025847,1716774684810,-337.70923287,0.0003041,4]
[328025848,1716774684819,-1261.26,0.0003041,4]
[328025849,1716774684828,-576.77,0.0003041,4]
[328025850,1716774684838,-500.0,0.0003041,4]
[328025851,1716774684848,-500.0,0.0003041,4]
[328025852,1716774684857,-1690.76,0.0003041,4]
[328025853,1716774684867,-603.3,0.0003041,4]
[328025854,1716774684877,-500.0,0.0003041,4]
[328025855,1716774684887,-500.0,0.0003041,4]
[328025856,1716774684896,-337.82081896,0.0003041,4]
[328025857,1716774684906,-12954.13,0.0003041,4]
[328025858,1716774684915,-500.0,0.0003041,4]
[328025859,1716774684924,-500.0,0.0003041,4]
[328025860,1716774684934,-150.5,0.0003044,15]
[328025861,1716774684943,-150.5,0.0003044,15]
[328025862,1716774684953,-150.5,0.0003045,15]
[328025863,1716774684962,-150.5,0.0003045,15]
[328025864,1716774684971,-150.5,0.0003046,15]
[328025865,1716774684980,-150.5,0.0003046,15]
[328025866,1716774684990,-166786.0,0.00030466,5]
[328025867,1716774684999,-155.20279384,0.00030683,4]
[328025868,1716774685009,-159.14436264,0.00030684,4]
[328025869,1716774685018,-559.78240317,0.00030684,4]
[328025870,1716774685028,-500.0,0.00030684,4]
[328025871,1716774685037,-548.99,0.00030684,4]
[328025872,1716774685046,-623.54,0.00030684,4]
[328025873,1716774685055,-500.0,0.00030684,4]
[328025874,1716774685064,-500.0,0.00030684,4]
[328025875,1716774685074,-500.0,0.00030684,4]
[328025876,1716774685140,-500.0,0.00030684,4]
[328025877,1716774685151,-500.0,0.00030684,4]
[328025878,1716774685160,-342.5752299,0.00030684,4]
[328025879,1716774685170,-500.0,0.00030684,4]
[328025880,1716774685179,-500.0,0.00030684,4]
[328025881,1716774685188,-500.0,0.00030684,4]
[328025882,1716774685198,-500.0,0.00030684,4]
[328025883,1716774685208,-716.7,0.00030684,4]
[328025884,1716774685219,-500.0,0.00030684,4]
[328025885,1716774685230,-500.0,0.00030684,4]
[328025886,1716774685239,-500.0,0.00030684,4]
[328025887,1716774685248,-352.26570576,0.00030684,4]
[328025888,1716774685258,-500.0,0.00030684,4]
[328025889,1716774685267,-500.0,0.00030684,4]
[328025890,1716774685276,-520.81,0.00030684,4]
[328025891,1716774685285,-398.25901444,0.00030684,4]
[328025892,1716774685294,-500.0,0.00030684,4]
[328025893,1716774685303,-500.0,0.00030684,4]
[328025894,1716774685312,-403.15464489,0.00030684,4]
[328025895,1716774685321,-500.0,0.00030684,4]
[328025896,1716774685331,-500.0,0.00030684,4]
[328025897,1716774685340,-500.0,0.00030684,4]
[328025898,1716774685349,-500.0,0.00030684,4]
[328025899,1716774685359,-153.70422738,0.00030684,4]
[328025900,1716774685368,-281.6020193,0.00030684,4]
[328025901,1716774685377,-500.0,0.00030684,4]
[328025902,1716774685386,-500.0,0.00030684,4]
[328025903,1716774685397,-500.0,0.00030684,4]
[328025904,1716774685406,-502.71,0.00030684,4]
[328025905,1716774685415,-809.78,0.00030684,4]
[328025906,1716774685424,-633.92850614,0.00030684,4]
[328025907,1716774685434,-920.26,0.00030684,4]
[328025908,1716774685443,-500.0,0.00030684,4]
[328025909,1716774685452,-522.9,0.00030684,4]
[328025910,1716774685462,-559.7,0.00030684,4]
[328025911,1716774685472,-3246.39,0.00030684,4]
[328025912,1716774685481,-850.87,0.00030684,4]
[328025913,1716774685490,-500.0,0.00030684,4]
[328025914,1716774685501,-500.0,0.00030684,4]
[328025915,1716774685510,-1876.14,0.00030684,4]
[328025916,1716774685520,-500.0,0.00030684,4]
[328025917,1716774685530,-500.0,0.00030684,4]
[328025918,1716774685540,-1150.71,0.00030684,4]
[328025919,1716774685550,-3298.05,0.00030684,4]
[328025920,1716774685560,-246.17651199,0.00030684,4]
[328025921,1716774685570,-665.62,0.00030684,4]
[328025922,1716774685579,-500.0,0.00030684,4]
[328025923,1716774685588,-1737.1,0.00030684,4]
[328025924,1716774685598,-488.37988667,0.00030684,4]
[328025925,1716774685608,-589.83,0.00030684,4]
[328025926,1716774685617,-1057.8,0.00030684,4]
[328025927,1716774685626,-500.0,0.00030684,4]
[328025928,1716774685635,-500.0,0.00030684,4]
[328025929,1716774685646,-538.99,0.00030684,4]
[328025930,1716774685655,-674.64,0.00030684,4]
[328025931,1716774685664,-1379.1,0.00030684,4]
[328025932,1716774685674,-569.47714114,0.00030684,4]
[328025933,1716774685684,-500.0,0.00030684,4]
[328025934,1716774685694,-903.17,0.00030684,4]
[328025935,1716774685704,-500.0,0.00030684,4]
[328025936,1716774685713,-500.0,0.00030684,4]
[328025937,1716774685722,-500.0,0.00030684,4]